Cogmind - Beta 15 @@@ ROGUE MODE // 2025.06.16 @ 20:33:43 Player: Elxavo Result: Destroyed by G-47 Trooper with Particle Gun Performance ------------- Evolutions (0) 0 Regions Visited (1) 200 Robots Destroyed (7) 35 Value Destroyed (169) 169 Prototype IDs (0) 0 Alien Tech Used (0) 0 Bonus (0) 0 TOTAL SCORE: 404 Bonus ------- None Cogmind --------- Core Integrity 0/250 Matter 300/300 Energy 97/100 System Corruption 0% Temperature Cool (9) Movement Walking (400) Ox4 Location -10/Materials Parts ------- > --- POWER (1) -------- (None) > --- PROPULSION (2) --- Aluminum Leg > --- UTILITY (2) ------ High-capacity Storage Unit > --- WEAPON (2) ------- Small Laser > --- INVENTORY (20) --- Ion Engine Light Treads Small Storage Unit Improved Terrain Scanner Mining Laser Peak State ------------ > --- POWER ------------ Light Ion Engine > --- PROPULSION ------- Aluminum Leg Aluminum Leg > --- UTILITY ---------- High-capacity Storage Unit Seismic Detector > --- WEAPON ----------- Light Assault Rifle Light Assault Rifle > --- INVENTORY -------- Ion Engine Light Ion Engine Light Treads Aluminum Leg Small Storage Unit Improved Terrain Scanner Small Laser Mining Laser [Rating: 8] Favorites ----------- Power Light Ion Engine Engine Light Ion Engine Propulsion Aluminum Leg Leg Aluminum Leg Utility Seismic Detector Device Seismic Detector Storage Small Storage Unit Weapon Light Assault Rifle Energy Gun Small Laser Ballistic Gun Light Assault Rifle Build | -11 -10 ------- Run | Yrd Mat Slots Evolved . | . . Power . | . . Propulsion . | . . Utility . | . . Weapon . | . . Parts Attached 11 | 6 5 Power 2 | 1 1 Engine 2 | 1 1 Core . | . . Reactor . | . . Propulsion 3 | 1 2 Treads . | . . Leg 3 | 1 2 Wheel . | . . Hover . | . . Flight . | . . Utility 3 | 2 1 Device 1 | 1 . Storage 2 | 1 1 Processor . | . . Hackware . | . . Protection . | . . Artifact . | . . Weapon 3 | 2 1 Energy Gun 1 | . 1 Energy Cannon . | . . Ballistic Gun 2 | 2 . Ballistic Cannon . | . . Launcher . | . . Special Weapon . | . . Impact Weapon . | . . Slashing Weapon . | . . Piercing Weapon . | . . Special Melee Weapon . | . . Unidentified Prototypes . | . . Parts Lost 7 | . 7 Power 2 | . 2 Propulsion 2 | . 2 Utility 1 | . 1 Weapon 2 | . 2 Highest Loss Streak 7 | . 7 To Critical Strikes . | . . Average Backups 7 | 5 7 Power 1 | 1 1 Propulsion 2 | 2 2 Utility 1 | . 1 Weapon 1 | 1 1 Tool/Special . | . . Unused Backups 6 | 1 5 Power 1 | . 1 Propulsion 2 | . 2 Utility 2 | 1 1 Weapon 1 | . 1 Tool/Special . | . . Average Slot Usage (%) 84 | . 84 Engine 12 | . 12 Leg 16 | . 16 Device 13 | . 13 Storage 14 | . 14 Energy Gun 1 | . 1 Ballistic Gun 25 | . 25 Peak Build Rating 8 | 7 8 Average Rating 6 | 5 6 On Entrance 3 | . 7 Naked Turns . | . . Heaviest Build 46 | 11 46 Greatest Support 20 | 10 20 Greatest Overweight (x) 4 | 1 4 Average Overweight (x) 1 | . 1 Largest Inventory Capacity 20 | 8 20 Average Capacity 10 | 7 11 Most Carried 9 | 8 9 Average Carried 7 | 5 7 Final Capacity 20 | 8 20 Final Carried 8 | 8 5 Class Distribution -------------------- 100% | Mutant Dominant Class ---------------- Mutant | -10/Materials Resources | -11 -10 ----------- Run | Yrd Mat Matter Collected 344 | 278 66 Remotely . | . . Salvage Created 287 | 125 162 Parts 14 | 10 4 Haulers Intercepted . | . . Recyclers Shooed . | . . Parts Field Recycled . | . . Retrieved Matter . | . . Parts Self-Destructed . | . . Prevented . | . . Kills | -11 -10 ------- Run | Yrd Mat Combat Hostiles Destroyed 4 | . 4 Guns 4 | . 4 Classes Destroyed 3 | 2 1 Tunneler 2 | 2 . Recycler 1 | 1 . Grunt 4 | . 4 Best Kill Streak 2 | 2 2 Combat Bots Only 2 | . 2 Max Kills in Single Turn 1 | 1 1 Gunslinging . | . . Exploded . | . . Melee . | . . Uniques/NPCs Destroyed . | . . Combat | -11 -10 -------- Run | Yrd Mat Hostile Shots Fired 84 | . 84 Missed 22 | . 22 Hits 62 | . 62 Projectile 62 | . 62 Damage Taken 830 | . 830 Core 257 | . 257 Absorbed by Shields . | . . Core Remaining (%) 100 | 100 . Volleys Fired 41 | 9 32 Largest 2 | 2 2 Hottest 60 | 40 60 Shots Fired 69 | 18 51 Gun 69 | 18 51 Cannon . | . . Launcher . | . . Special . | . . Kinetic 53 | 18 35 Thermal 16 | . 16 Explosive . | . . Electromagnetic . | . . Robot Hit Streak 8 | 2 8 Robot Miss Streak 5 | 1 5 Penetration Max . | . . Secondary Targets . | . . Shots Hit Robots 44 | 11 33 Core Hits 17 | 6 11 Critical Kills . | . . Critical Parts Destroyed . | . . Critical Strikes . | . . Melee Attacks . | . . Impact . | . . Slashing . | . . Piercing . | . . Sneak Attacks . | . . Combat Hostiles . | . . Follow-up Attacks . | . . Damage Inflicted 414 | 91 323 Guns 414 | 91 323 Cannons . | . . Explosions . | . . Melee . | . . Ramming . | . . Kinetic 296 | 91 205 Thermal 118 | . 118 Explosive . | . . Electromagnetic . | . . Impact . | . . Slashing . | . . Piercing . | . . Highest Corruption . | . . Average Corruption . | . . Corruption Purged . | . . Corruption Blocked . | . . Overload Shots . | . . Overflow Damage . | . . Projectiles . | . . Explosions . | . . Melee . | . . Knockbacks . | . . Impact . | . . Kinetic . | . . Secondary . | . . Self-Inflicted Damage . | . . Shots . | . . Rammed . | . . Targets Rammed . | . . Kicked . | . . Crushed . | . . Highest Temperature 134 | . 134 Average Temperature 33 | . 33 Received Heat Transfer 471 | . 471 Siege Activations . | . . Martial Activations . | . . Shielding Activations . | . . Robots Disrupted . | . . Combat Hostiles . | . . Robots Corrupted . | . . Combat Hostiles . | . . Parts Fried . | . . Impact Corruptions . | . . Robots Melted . | . . Combat Hostiles . | . . Parts Melted . | . . Heat Transferred 275 | . 275 Parts Sabotaged . | . . Parts Stolen . | . . Parts Stripped . | . . Power Chain Reactions . | . . Alert | -11 -10 ------- Run | Yrd Mat Maximum Alert Level . | . . Low Security (%) 100 | 100 100 Level 1 . | . . Level 2 . | . . Level 3 . | . . Level 4 . | . . Level 5 . | . . High Security . | . . Max Security . | . . Peak Influence 40 | 5 40 Initial . | . . Average 4 | 1 5 Influence Increases 120 | 15 105 Destroy 0b10 Robot/C 80 | . 80 Destroy 0b10 Robot/NC 15 | 15 . Destroy Leader 20 | . 20 Successful Hack 5 | . 5 Influence Decreases 120 | 15 105 Time Decay 80 | 15 65 Lost Part 40 | . 40 Squads Dispatched 2 | . 2 Investigation 1 | . 1 Extermination . | . . Reinforcement 1 | . 1 Assault . | . . Garrison . | . . Intercept . | . . Searches Triggered . | . . Construction Impeded . | . . Haulers Reinforced . | . . Active Scanning Responses . | . . Cargo Convoy Interrupts . | . . Stealth | -11 -10 --------- Run | Yrd Mat Distress Signals . | . . Communications Jammed . | . . Distress Signals . | . . Times Spotted 6 | . 6 Peak Tracking Total 4 | . 4 Tactical Retreats . | . . Traps | -11 -10 ------- Run | Yrd Mat Traps Triggered 1 | . 1 Indirectly . | . . Trap Hack Attempts . | . . Triggered . | . . Disarmed . | . . Reprogrammed . | . . Reused . | . . Traps Extracted . | . . Installed . | . . Triggered . | . . Machines | -11 -10 ---------- Run | Yrd Mat Machines Disabled . | . . Max in Single Turn . | . . Machines Repaired . | . . Machines Dismantled . | . . Machines Sabotaged . | . . Overloaded Fab Kills . | . . Hacking | -11 -10 --------- Run | Yrd Mat Machines Accessed 2 | . 2 Terminals 2 | . 2 Fabricators . | . . Repair Stations . | . . Recycling Units . | . . Scanalyzers . | . . Garrison Access . | . . Total Hacks 3 | . 3 Successful 1 | . 1 Failed 2 | . 2 Catastrophic 1 | . 1 Database Lockouts . | . . Manual . | . . Terminals 3 | . 3 Fabricators . | . . Repair Stations . | . . Recycling Units . | . . Scanalyzers . | . . Garrison Access . | . . Terminal Hacks 1 | . 1 Hauler Manifests 1 | . 1 Fabricator Hacks . | . . Repair Station Hacks . | . . Recycling Unit Hacks . | . . Scanalyzer . | . . Garrison Access Hacks . | . . Unauthorized Hacks . | . . Terminals . | . . Fabricators . | . . Repair Stations . | . . Recycling Units . | . . Scanalyzers . | . . Garrison Access . | . . Data Cores Recovered . | . . Used . | . . Hacking Detections 2 | . 2 Full Trace Events . | . . Feedback Events . | . . Feedback Blocked . | . . Robot Schematics Acquired . | . . Robots Built . | . . Authchips . | . . Time . | . . Total Robot Build Rating . | . . Part Schematics Acquired . | . . Parts Built . | . . Authchips . | . . Time . | . . Total Part Build Rating . | . . Parts Repaired . | . . Time . | . . Parts Recycled . | . . Recycled Matter . | . . Retrieved Matter . | . . Retrieved Components . | . . Parts Scanalyzed . | . . Part Schematics Acquired . | . . Parts Damaged . | . . Bothacking | -11 -10 ------------ Run | Yrd Mat Used RIF Installer . | . . Robots Hacked . | . . Non-combat . | . . Combat . | . . Robot Hacks Applied . | . . Relay Couplers Released . | . . Fabnet Peak Effective % . | . . Robots Rewired . | . . Allies Hacked . | . . Hacks Repelled . | . . Allies | -11 -10 -------- Run | Yrd Mat Total Allies . | . . Largest Group . | . . Highest-Rated Group . | . . Highest-Rated Ally . | . . Total Orders . | . . Ally Attacks . | . . Total Damage . | . . Kills . | . . Allies Corrupted . | . . Allies Melted . | . . Intel | -11 -10 ------- Run | Yrd Mat Active Infowar (turns) 580 | 84 496 Seismic 580 | 84 496 Robot Analysis Total . | . . Derelict Logs Recovered . | . . Drone Launches . | . . Drone Recoveries . | . . Exploration | -11 -10 ------------- Run | Yrd Mat Turns Passed 694 | 165 529 Spaces Moved 294 | 82 212 Core 13 | 13 . Treads . | . . Legs 281 | 69 212 Wheels . | . . Hover . | . . Flight . | . . Fastest Speed 50 | 50 190 Average Speed 189 | 147 205 Slowest Speed 400 | 190 400 Overloaded Moves . | . . Propulsion Burnouts . | . . Robots Hopped . | . . Potential Cave-ins . | . . Cave-ins Triggered . | . . Exploration Rate (%) 22 | 5 39 Regions Visited 1 Branch Regions . Pre-discovered Areas . | . . Known Exits Taken . | . . Unknown Exits Taken 1 | 1 . Scrap Searched . | . . Spaces Dug . | . . Terrain Destroyed . | . . Melee . | . . Projectile . | . . AOE . | . . Terrain Rammed . | . . Walls Destroyed . | . . Machines Disabled . | . . Actions | -11 -10 --------- Run | Yrd Mat Total 376 | 113 263 Wait 11 | 1 10 Move 293 | 81 212 Hop . | . . Pick Up 17 | 15 2 Fast Attach . | . . Attach 10 | 6 4 Detach . | . . Swap 1 | . 1 Drop 3 | 1 2 Fire 41 | 9 32 Melee . | . . Ram . | . . Kick . | . . Crush . | . . Escape Stasis . | . . Rewire . | . . Trap . | . . Miscellaneous . | . . Route ------- -11/Scrapyard -10/Materials (discovered 2 exits: [*Mat] / [*Sub]) History --------- Turn | Location | Event 16 | -11/Scrapyard | Discovered new exit (range 15) 166 | -11/Scrapyard | Entered Materials 167 | -10/Materials | Met a group of wandering Federalists 284 | -10/Materials | Discovered new exit (range 3) 309 | -10/Materials | Build established: Mutant 426 | -10/Materials | Discovered new exit (range 16) 642 | -10/Materials | Core integrity fell below 50% 672 | -10/Materials | Core integrity fell below 20% 695 | -10/Materials | Destroyed by G-47 Trooper with Particle Gun Last Messages --------------- 00599_ Triggered Alarm Trap. 00599_ An alarm sounds. 00599_ ALERT: Alarm triggered, dispatching investigation squad. 00627_ Lgt. Ion Engine destroyed. 00634_ Aluminum Leg destroyed. 00638_ U-05 Engineer lays Concrete. 00649_ Lgt. Assault Rifle destroyed. 00661_ G-34 Mercenary destroyed. 00662_ K-01 Serf collects debris. 00662_ Seismic Detector destroyed. 00664_ Lgt. Assault Rifle destroyed. 00666_ K-01 Serf collects debris. 00670_ G-34 Mercenary destroyed. 00672_ Acquired 26 matter. 00673_ K-01 Serf collects debris. 00675_ Lgt. Ion Engine destroyed. 00676_ K-01 Serf collects debris. 00677_ Aluminum Leg destroyed. 00680_ K-01 Serf collects debris. 00685_ K-01 Serf destroyed. Map ----- +----------------------------------------------------+ | ????# #?????????## #??# """"" #?????????????# < | | ????# #??????#### ##??# """ #?????????????# | | ????# #??????# ???# #?????????????# | | ????# #??????# ##??# #?????????????# | | ????# #??????# #??# #?????????????# | | ????# #??????#### ###?#####+#######???????????# | | ????# ######### #????# #???????????# | | ????# ###### #???????????# | | ????# ########????# | | ????# ########### # #????# | | ????# ######## #?????????# # """ #????# | | ?? #??????#######?????????# # """ #????# | | #??????????????????????# # """ #????# | | #??????????????????????# + #????# | | #### #??????????????????????# # #????# | | ???# #?????????????????????## ########????# | | ??? ??????????????????#### ############ | | ??? ??????????? | | ??# ?????????? " | | ??# ??????????? | | ??# ??????????? ########## ############ | | ??# ##?????????????????????#######??????????# | | ??? ????????????????????????????????????????# | | ??????????##################################### | | ????????? r * | | ????????? *@ g % | | ????????? !%%[ % | | ?????????????############# ##############+###### | | ?????????????????????????# #????????????# """ # | | ?????????????????????????# #????????????# """ # | | ?????????????????????????# #????????????# """ "# | | ?????????????????????????# #????????????# T# | | ?????????????????????????# #????????????# "# | | ?????????????????????????# #????????????# = # | | ?????????????????????????# #????????????######## | | ?????????????????????????# #???????????????????? | | ?????????????????????????# #???????????????????? | | ?????????????????????????# #???????????????????? | | ?????????????????????????# #???????????????????? | | ?????????????????????????# #???????????????????? | | ?????????????????????????# #???????????????????? | | ????????????????????????? ???????????????????? | | ?????????????????????????? ????????????????????? | | ?????????????????????????? ????????????????????? | | ?????????????????????????????????????????????????? | | ?????????????????????????????????????????????????? | | ?????????????????????????????????????????????????? | | ?????????????????????????????????????????????????? | | ?????????????????????????????????????????????????? | | ?????????????????????????????????????????????????? | +----------------------------------------------------+ Best States ------------- Heat Dissipation 25 Energy Generation 10 Energy Capacity 125 Matter Stores 300 Matter Capacity 300 Sight Range 16 Terrain Scan Density 10 Evasion (%) 50 Item Schematics ----------------- None Robot Schematics ------------------ None Fabricated ------------ Nothing Repaired ---------- Nothing Alien Tech Used ----------------- None Achievements -------------- None Challenges ------------ None Game ------ Seed HybridBiomechanicalFlamer Manual? 0 Play Time 00:11:12 Cumulative 29.2 hours Start 2025.06.16 @ 20:24:09 End 2025.06.16 @ 20:33:43 Sessions 1 Manual Loads 0 Difficulty Rogue Special Mode None Game No. 37 Rogue 37 Adventurer 0 Explorer 0 Win Type - Total 0 Types 0/0/0/0/0/0/0/0/0/0 Lore% 11 Gallery% 17 Achievement% 15 Wizard Run 0 Options --------- Layout 0 ASCII 0 Keyboard 0 Movement Mouse Keybinds 0 Fullscreen 1 Font 18/SmallcapsGlow Map View 76x50 Zoom Use 0% Tactical HUD 1 Map Filters NONE Filters LOW_CONTRAST(13,24,33) Steam 1 RUN: 588a6228-f486-4272-aaf4-813451ce2ee5